fUSD/lending_fUSD_20250502
["ID","MTS","AMOUNT","RATE_DAILY","PERIOD"]
[359633910,1746199842013,-450.0,0.00019766,2]
[359633911,1746199842023,-450.0,0.00019766,2]
[359633912,1746199842032,-628.37,0.00019766,2]
[359633913,1746199842041,-324.10511195,0.00019766,2]
[359633914,1746199842051,-450.0,0.00019766,2]
[359633915,1746199842060,-450.0,0.00019766,2]
[359633916,1746199842069,-450.0,0.00019766,2]
[359633917,1746199842079,-450.0,0.00019766,2]
[359633918,1746199842089,-641.86,0.00019766,2]
[359633919,1746199842099,-450.0,0.00019766,2]
[359633920,1746199842109,-450.0,0.00019766,2]
[359633921,1746199842119,-866.32,0.00019766,2]
[359633922,1746199842128,-450.0,0.00019766,2]
[359633923,1746199842138,-450.0,0.00019766,2]
[359633924,1746199842147,-450.0,0.00019766,2]
[359633925,1746199842157,-450.0,0.00019766,2]
[359633926,1746199842172,-450.0,0.00019766,2]
[359633927,1746199842182,-450.0,0.00019766,2]
[359633928,1746199842194,-450.0,0.00019766,2]
[359633929,1746199842203,-181.40078466,0.00019766,2]
[359633930,1746199842213,-450.0,0.00019766,2]
[359633931,1746199842222,-450.0,0.00019766,2]
[359633932,1746199842234,-450.0,0.00019766,2]
[359633933,1746199842244,-343.03507731,0.00019766,2]
[359633934,1746199842253,-450.0,0.00019766,2]
[359633935,1746199842264,-594.16,0.00019766,2]
[359633936,1746199842274,-450.0,0.00019766,2]
[359633937,1746199842284,-689.77,0.00019766,2]
[359633938,1746199842293,-450.0,0.00019766,2]
[359633939,1746199842304,-450.0,0.00019766,2]
[359633940,1746199842314,-450.0,0.00019766,2]
[359633941,1746199842324,-450.0,0.00019766,2]
[359633942,1746199842333,-450.0,0.00019766,2]
[359633943,1746199842343,-450.0,0.00019766,2]
[359633944,1746199842353,-576.84,0.00019766,2]
[359633945,1746199842363,-450.0,0.00019766,2]
[359633946,1746199842372,-656.08,0.00019766,2]
[359633947,1746199842382,-450.0,0.00019766,2]
[359633948,1746199842392,-238.82591097,0.00019766,2]
[359633949,1746199842402,-450.0,0.00019766,2]
[359633950,1746199842415,-764.55,0.00019766,2]
[359633951,1746199842424,-767.29,0.00019766,2]
[359633952,1746199842433,-665.97,0.00019766,2]
[359633953,1746199842443,-887.52,0.00019766,2]
[359633954,1746199842453,-318.76601085,0.00019766,2]
[359633955,1746199842463,-2926.44,0.00019766,2]
[359633956,1746199842474,-4332.42,0.00019766,2]
[359633957,1746199842484,-450.0,0.00019766,2]
[359633958,1746199842493,-450.0,0.00019766,2]
[359633959,1746199842503,-718.62,0.00019766,2]
[359633960,1746199842512,-470.78835017,0.00019766,2]
[359633961,1746199842522,-804.12,0.00019766,2]
[359633962,1746199842531,-450.0,0.00019766,2]
[359633963,1746199842541,-673.04,0.00019766,2]
[359633964,1746199842551,-1090.43,0.00019766,2]
[359633965,1746199842561,-450.0,0.00019766,2]
[359633966,1746199842570,-450.0,0.00019766,2]
[359633967,1746199842580,-859.36,0.00019766,2]
[359633968,1746199842590,-450.0,0.00019766,2]
[359633969,1746199842599,-450.0,0.00019766,2]
[359633970,1746199842609,-450.0,0.00019766,2]
[359633971,1746199842618,-591.16,0.00019766,2]
[359633972,1746199842628,-450.0,0.00019766,2]
[359633973,1746199842638,-2316.15,0.00019766,2]
[359633974,1746199842648,-450.0,0.00019766,2]
[359633975,1746199842657,-1055.61,0.00019766,2]
[359633976,1746199842671,-519.48,0.00019766,2]
[359633977,1746199842680,-450.0,0.00019766,2]
[359633979,1746199842690,-450.0,0.00019766,2]
[359633981,1746199842700,-1218.7,0.00019766,2]
[359633983,1746199842709,-450.0,0.00019766,2]
[359633985,1746199842718,-450.0,0.00019766,2]
[359633987,1746199842728,-450.0,0.00019766,2]
[359633988,1746199842737,-962.02,0.00019766,2]
[359633989,1746199842746,-504.52,0.00019766,2]
[359633990,1746199842756,-450.0,0.00019766,2]
[359633991,1746199842765,-450.0,0.00019766,2]
[359633992,1746199842774,-269.99919044,0.00019766,2]
[359633993,1746199842784,-1938.1,0.00019766,2]
[359633994,1746199842793,-450.0,0.00019766,2]
[359633995,1746199842803,-5862.56,0.00019766,2]
[359633996,1746199842812,-450.0,0.00019766,2]
[359633997,1746199842822,-450.0,0.00019766,2]
[359633999,1746199842831,-758.01,0.00019766,2]
[359634001,1746199842841,-5586.04,0.00019766,2]
[359634003,1746199842850,-450.0,0.00019766,2]
[359634005,1746199842859,-636.69,0.00019766,2]
[359634007,1746199842868,-450.0,0.00019766,2]
[359634009,1746199842877,-824.83,0.00019766,2]
[359634010,1746199842887,-450.0,0.00019766,2]
[359634011,1746199842896,-450.0,0.00019766,2]
[359634012,1746199842906,-1051.11,0.00019766,2]
[359634014,1746199842916,-450.0,0.00019766,2]
[359634016,1746199842925,-450.0,0.00019766,2]
[359634018,1746199842934,-450.0,0.00019766,2]
[359634020,1746199842943,-450.0,0.00019766,2]
[359634021,1746199842953,-450.0,0.00019766,2]
[359634022,1746199842962,-5763.08,0.00019766,2]
[359634023,1746199842972,-450.0,0.00019766,2]
[359634024,1746199842982,-406.25701721,0.00019766,2]
[359634025,1746199842991,-111585.98,0.00019766,2]
[359634026,1746199843000,-450.0,0.00019766,2]
[359634027,1746199843010,-1016.66,0.00019766,2]
[359634028,1746199843019,-577.09,0.00019766,2]
[359634029,1746199843029,-6038.92,0.00019766,2]
[359634030,1746199843038,-1354.27,0.00019766,2]
[359634031,1746199843048,-454.29,0.00019766,2]
[359634032,1746199843057,-450.0,0.00019766,2]
[359634033,1746199843066,-696.69,0.00019766,2]
[359634034,1746199843076,-31355.2,0.00019766,2]
[359634035,1746199843085,-550.18,0.00019766,2]
[359634036,1746199843095,-450.0,0.00019766,2]
[359634037,1746199843104,-2096.95,0.00019766,2]
[359634038,1746199843114,-450.0,0.00019766,2]
[359634039,1746199843124,-450.0,0.00019766,2]
[359634040,1746199843133,-18530.75,0.00019766,2]
[359634041,1746199843143,-450.0,0.00019766,2]
[359634042,1746199843152,-450.0,0.00019766,2]
[359634043,1746199843163,-1179.41,0.00019766,2]
[359634044,1746199843173,-492.19976544,0.00019766,2]
[359634045,1746199843184,-450.0,0.00019766,2]
[359634046,1746199843194,-450.0,0.00019766,2]
[359634047,1746199843203,-521.12,0.00019766,2]
[359634048,1746199843212,-300.0,0.00019766,2]
[359634049,1746199843223,-789.77,0.00019766,2]
[359634050,1746199843232,-450.0,0.00019766,2]
[359634051,1746199843242,-450.0,0.00019766,2]
[359634052,1746199843252,-227.9320649,0.00019767,2]
[359634053,1746199843263,-450.0,0.00019767,2]
[359634054,1746199843273,-450.0,0.00019767,2]
[359634055,1746199843284,-450.0,0.00019767,2]
[359634056,1746199843294,-624.46,0.00019767,2]
[359634058,1746199843304,-450.0,0.00019767,2]
[359634060,1746199843313,-450.0,0.00019767,2]
[359634062,1746199843323,-450.0,0.00019767,2]
[359634064,1746199843333,-450.0,0.00019767,2]
[359634066,1746199843342,-616.36,0.00019767,2]
[359634067,1746199843352,-450.0,0.00019767,2]
[359634068,1746199843361,-450.0,0.00019767,2]
[359634069,1746199843371,-450.0,0.00019767,2]
[359634070,1746199843380,-450.0,0.00019767,2]
[359634071,1746199843390,-450.0,0.00019767,2]
[359634072,1746199843400,-450.0,0.00019767,2]
[359634079,1746199843409,-450.0,0.00019767,2]
[359634081,1746199843618,-450.0,0.00019767,2]
[359634082,1746199843628,-450.0,0.00019767,2]
[359634083,1746199843638,-486.48,0.00019767,2]
[359634084,1746199843648,-450.0,0.00019767,2]
[359634085,1746199843658,-2960.53,0.00019767,2]
[359634086,1746199843669,-300.3202691,0.00019767,2]
[359634087,1746199843679,-450.0,0.00019767,2]
[359634088,1746199843688,-450.0,0.00019767,2]
[359634089,1746199843698,-450.0,0.00019767,2]
[359634090,1746199843707,-450.0,0.00019767,2]
[359634091,1746199843716,-566.82,0.00019767,2]
[359634092,1746199843726,-450.0,0.00019767,2]
[359634093,1746199843735,-450.0,0.00019767,2]
[359634094,1746199843745,-1295.05,0.00019767,2]
[359634095,1746199843754,-441.29773002,0.00019767,2]
[359634096,1746199843764,-450.0,0.00019767,2]
[359634097,1746199843773,-450.0,0.00019767,2]
[359634098,1746199843782,-450.0,0.00019767,2]
[359634099,1746199843792,-513.33,0.00019767,2]
[359634100,1746199843801,-1401.63,0.00019767,2]
[359634101,1746199843811,-450.0,0.00019767,2]
[359634102,1746199843821,-468.15,0.00019767,2]
[359634103,1746199843832,-450.0,0.00019767,2]
[359634104,1746199843842,-450.0,0.00019767,2]
[359634105,1746199843851,-450.0,0.00019767,2]
[359634106,1746199843861,-450.0,0.00019767,2]
[359634107,1746199843871,-419.97576108,0.00019767,2]
[359634108,1746199843880,-450.0,0.00019767,2]
[359634109,1746199843889,-511.14,0.00019767,2]
[359634110,1746199843899,-450.0,0.00019767,2]
[359634111,1746199843909,-1670.55,0.00019767,2]
[359634112,1746199843922,-679.3,0.00019767,2]
[359634113,1746199843932,-563.2,0.00019767,2]
[359634114,1746199843942,-450.0,0.00019767,2]
[359634115,1746199843951,-450.0,0.00019767,2]
[359634116,1746199843961,-450.0,0.00019767,2]
[359634117,1746199843971,-450.0,0.00019767,2]
[359634118,1746199843980,-520.7,0.00019767,2]
[359634119,1746199843990,-450.0,0.00019767,2]
[359634120,1746199843999,-450.0,0.00019767,2]
[359634121,1746199844009,-665.75,0.00019767,2]
[359634122,1746199844018,-1062.75,0.00019767,2]
[359634123,1746199844028,-1240.13,0.00019767,2]
[359634124,1746199844037,-2585.33,0.00019767,2]
[359634125,1746199844047,-450.0,0.00019767,2]
[359634126,1746199844057,-450.0,0.00019767,2]
[359634127,1746199844066,-450.0,0.00019767,2]
[359634128,1746199844076,-1029.65,0.00019767,2]
[359634129,1746199844086,-450.0,0.00019767,2]
[359634130,1746199844095,-450.0,0.00019767,2]
[359634131,1746199844105,-892.91,0.00019767,2]
[359634132,1746199844115,-892.91,0.00019767,2]
[359634133,1746199844124,-450.0,0.00019767,2]
[359634134,1746199844135,-450.0,0.00019767,2]
[359634135,1746199844145,-835.2,0.00019767,2]
[359634136,1746199844154,-450.0,0.00019767,2]
[359634137,1746199844165,-861.59,0.00019767,2]
[359634138,1746199844175,-639.72,0.00019767,2]
[359634139,1746199844185,-228.60636281,0.0001977,2]
[359634140,1746199844197,-796.51250626,0.0001977,2]
[359634141,1746199844207,-185.86498536,0.00019773,2]
[359634142,1746199844217,-501.47327578,0.00019773,2]
[359634143,1746199844227,-543.3110312,0.00019773,2]
[359634144,1746199844237,-500.0,0.00019773,2]
[359634145,1746199844247,-500.4284128,0.00019773,2]
[359634146,1746199844258,-228.60636281,0.00019796,2]
[359634147,1746199844269,-796.51250626,0.00019796,2]
[359634148,1746199844279,-1375.4094293,0.00019799,2]
[359634149,1746199844289,-228.60636281,0.00019822,2]
[359634150,1746199844300,-796.51250626,0.00019822,2]
[359634151,1746199844310,-2000.0,0.0001984,2]
[359634152,1746199844320,-200.0,0.0001984,2]
[359634153,1746199844330,-228.60636281,0.00019848,2]
[359634154,1746199844340,-796.51250626,0.00019848,2]
[359634155,1746199844350,-228.60636281,0.00019874,2]
[359634156,1746199844359,-796.51250626,0.00019874,2]
[359634157,1746199844369,-60563.12505587,0.0001988,2]
[359634158,1746199844379,-892.91,0.00019899,2]
[359634159,1746199844389,-162.61162371,0.000199,2]
[359634160,1746199844398,-1000.0,0.000199,2]
[359634161,1746199844408,-544.0,0.000199,2]
[359634162,1746199844419,-1000.0,0.000199,2]
[359634163,1746199844428,-1000.0,0.000199,2]
[359634164,1746199844437,-1000.0,0.000199,2]
[359634165,1746199844447,-1040.0,0.000199,2]
[359634166,1746199844456,-1320.0,0.000199,2]
[359634167,1746199844465,-212.05224491,0.000199,2]
[359634168,1746199844475,-247.85985594,0.000199,2]
[359634169,1746199844484,-18007.91269269,0.000199,2]
[359634170,1746199844494,-1000.0,0.000199,2]
[359634171,1746199844504,-1901.12315016,0.000199,3]
[359634172,1746199844513,-163.57518956,0.000199,2]
[359634173,1746199844523,-228.60636281,0.000199,2]
[359634174,1746199844533,-796.51250626,0.000199,2]
[359634175,1746199844543,-183.35052335,0.000199,2]
[359634176,1746199844552,-189.39229872,0.000199,3]
[359634177,1746199844562,-2739.35918986,0.000199,2]
[359634178,1746199844571,-891.1750295,0.000199,2]
[359634179,1746199844581,-380.78960975,0.000199,2]
[359634180,1746199844591,-1671.605,0.00019919,2]
[359634181,1746199844600,-165.8,0.00019919,2]
[359634182,1746199844610,-151.0,0.00019943,2]
[359634183,1746199844619,-207.4,0.00019953,2]
[359634184,1746199844629,-151.0,0.00019954,2]
[359634185,1746199844640,-151.0,0.00019954,2]
[359634186,1746199844649,-668.65185757,0.00019954,2]
[359634187,1746199844658,-4006.0,0.00019955,2]
[359634188,1746199844669,-6753.0,0.00019955,2]
[359634189,1746199844679,-153.0,0.00019955,2]
[359634190,1746199844688,-878.0,0.00019955,2]
[359634191,1746199844698,-501.66333751,0.00019973,2]
[359634192,1746199844708,-500.0,0.00019973,2]
[359634193,1746199844718,-500.0,0.00019973,2]
[359634194,1746199844728,-500.0,0.00019973,2]
[359634195,1746199844737,-502.14334775,0.00019973,2]
[359634196,1746199844747,-187.65011133,0.00019973,2]
[359634197,1746199844756,-500.0,0.00019973,2]
[359634198,1746199844766,-500.0,0.00019973,2]
[359634199,1746199844775,-500.0,0.00019973,2]
[359634200,1746199844785,-500.0,0.00019973,2]
[359634201,1746199844795,-500.68110356,0.00019973,2]
[359634202,1746199844804,-500.8896261,0.00019973,2]
[359634203,1746199844814,-505.99606481,0.00019973,2]
[359634204,1746199844823,-500.0,0.00019973,2]
[359634205,1746199844833,-500.0,0.00019973,2]
[359634206,1746199844842,-217.11897616,0.0001999,2]
[359634207,1746199844852,-217.11897616,0.0001999,2]
[359634208,1746199844861,-300.0,0.00019999,2]
[359634209,1746199844871,-500.0,0.00019999,2]
[359634210,1746199844880,-666.0,0.00019999,2]
[359634211,1746199844890,-300.0,0.00019999,2]
[359634212,1746199844899,-300.0,0.00019999,2]
[359634213,1746199844909,-500.0,0.00019999,2]
[359634214,1746199844923,-500.0,0.00019999,2]
[359634215,1746199844932,-500.0,0.00019999,2]
[359634216,1746199844942,-500.0,0.00019999,2]
[359634217,1746199844951,-480.10416411,0.00019999,2]
[359634218,1746199844961,-611.05,0.00019999,2]
[359634219,1746199844971,-450.0,0.00019999,2]
[359634220,1746199844980,-450.0,0.00019999,2]
[359634221,1746199844990,-450.0,0.00019999,2]
[359634222,1746199844999,-630.27,0.00019999,2]
[359634223,1746199845009,-450.0,0.00019999,2]
[359634224,1746199845018,-450.0,0.00019999,2]
[359634225,1746199845027,-450.0,0.00019999,2]
[359634226,1746199845036,-557.73,0.00019999,2]
[359634227,1746199845045,-450.0,0.00019999,2]
[359634228,1746199845054,-2008.18,0.00019999,2]
[359634229,1746199845063,-951.24,0.00019999,2]
[359634230,1746199845072,-536.44,0.00019999,2]
[359634231,1746199845081,-450.0,0.00019999,2]
[359634232,1746199845088,-450.0,0.00019999,2]
[359634233,1746199845096,-450.0,0.00019999,2]
[359634234,1746199845103,-450.0,0.00019999,2]
[359634235,1746199845111,-892.91,0.00019999,2]
[359634236,1746199845118,-892.91,0.00019999,2]
[359634237,1746199845125,-892.91,0.00019999,2]
[359634238,1746199845134,-892.91,0.00019999,2]
[359634239,1746199845144,-892.91,0.00019999,2]
[359634240,1746199845154,-892.91,0.00019999,2]
[359634241,1746199845165,-892.91,0.00019999,2]
[359634242,1746199845175,-892.91,0.00019999,2]
[359634243,1746199845186,-557.16,0.00019999,2]
[359634244,1746199845198,-892.91,0.00019999,2]
[359634245,1746199845208,-892.91,0.00019999,2]
[359634246,1746199845218,-892.91,0.00019999,2]
[359634247,1746199845229,-892.91,0.00019999,2]
[359634248,1746199845239,-892.91,0.00019999,2]
[359634249,1746199845249,-892.91,0.00019999,2]
[359634250,1746199845259,-892.91,0.00019999,2]
[359634251,1746199845271,-892.91,0.00019999,2]
[359634252,1746199845281,-892.91,0.00019999,2]
[359634253,1746199845291,-450.0,0.00019999,2]
[359634254,1746199845301,-892.91,0.00019999,2]
[359634255,1746199845311,-892.91,0.00019999,2]
[359634256,1746199845322,-892.91,0.00019999,2]
[359634257,1746199845332,-892.94,0.00019999,2]
[359634258,1746199845341,-682.54,0.00019999,2]
[359634259,1746199845351,-1197.0,0.00019999,2]
[359634260,1746199845363,-450.0,0.00019999,2]
[359634261,1746199845372,-450.0,0.00019999,2]
[359634262,1746199845382,-450.0,0.00019999,2]
[359634263,1746199845392,-852.31,0.00019999,2]
[359634264,1746199845402,-450.0,0.00019999,2]
[359634265,1746199845412,-450.0,0.00019999,2]
[359634266,1746199845423,-450.0,0.00019999,2]
[359634267,1746199845433,-450.0,0.00019999,2]
[359634268,1746199845443,-559.51,0.00019999,2]
[359634269,1746199845453,-654.1,0.00019999,2]
[359634270,1746199845462,-671.86,0.00019999,2]
[359634271,1746199845471,-575.83,0.00019999,2]
[359634272,1746199845480,-450.0,0.00019999,2]
[359634273,1746199845489,-450.0,0.00019999,2]
[359634274,1746199845499,-550.5,0.00019999,2]
[359634275,1746199845508,-450.0,0.00019999,2]
[359634276,1746199845518,-450.0,0.00019999,2]
[359634277,1746199845528,-770.79,0.00019999,2]
[359634278,1746199845539,-450.0,0.00019999,2]
[359634279,1746199845549,-1395.21,0.00019999,2]
[359634280,1746199845560,-450.0,0.00019999,2]
[359634281,1746199845570,-450.0,0.00019999,2]
[359634282,1746199845580,-450.0,0.00019999,2]
[359634283,1746199845590,-450.0,0.00019999,2]
[359634284,1746199845599,-450.0,0.00019999,2]
[359634285,1746199845609,-725.46,0.00019999,2]
[359634286,1746199845619,-450.0,0.00019999,2]
[359634287,1746199845630,-1825.65,0.00019999,2]
[359634288,1746199845640,-666.26,0.00019999,2]
[359634289,1746199845650,-900.07,0.00019999,2]
[359634290,1746199845660,-450.0,0.00019999,2]
[359634291,1746199845672,-450.0,0.00019999,2]
[359634293,1746199845682,-450.0,0.00019999,2]
[359634294,1746199845693,-450.0,0.00019999,2]
[359634295,1746199845703,-629.75,0.00019999,2]
[359634296,1746199845713,-450.0,0.00019999,2]
[359634297,1746199845723,-450.0,0.00019999,2]
[359634298,1746199845734,-686.08,0.00019999,2]
[359634299,1746199845743,-641.54,0.00019999,2]
[359634300,1746199845753,-450.0,0.00019999,2]
[359634301,1746199845763,-463.15,0.00019999,2]
[359634302,1746199845773,-450.0,0.00019999,2]
[359634303,1746199845783,-738.81,0.00019999,2]
[359634304,1746199845793,-450.0,0.00019999,2]
[359634305,1746199845803,-2152.76,0.00019999,2]
[359634306,1746199845812,-450.0,0.00019999,2]
[359634307,1746199845822,-865.45,0.00019999,2]
[359634308,1746199845831,-650.12,0.00019999,2]
[359634309,1746199845841,-450.0,0.00019999,2]
[359634310,1746199845851,-856.01,0.00019999,2]
[359634311,1746199845863,-475.45,0.00019999,2]
[359634312,1746199845873,-828.61,0.00019999,2]
[359634313,1746199845882,-450.0,0.00019999,2]
[359634314,1746199845893,-754.89,0.00019999,2]
[359634315,1746199845903,-520.44,0.00019999,2]
[359634316,1746199845912,-450.0,0.00019999,2]
[359634317,1746199845924,-450.0,0.00019999,2]
[359634318,1746199845934,-1304.58,0.00019999,2]
[359634319,1746199845944,-450.0,0.00019999,2]
[359634320,1746199845954,-1006.48,0.00019999,2]
[359634321,1746199845964,-450.0,0.00019999,2]
[359634322,1746199845974,-450.0,0.00019999,2]
[359634323,1746199846050,-450.0,0.00019999,2]
[359634324,1746199846060,-1359.24,0.00019999,2]
[359634325,1746199846069,-450.0,0.00019999,2]
[359634326,1746199846079,-583.31,0.00019999,2]
[359634327,1746199846089,-613.24,0.00019999,2]
[359634328,1746199846098,-771.0,0.00019999,2]
[359634329,1746199846108,-692.25841914,0.0002,2]
[359634330,1746199846117,-733299.44537938,0.0002,2]
[359634331,1746199846126,-2000.0,0.0002,4]
[359634332,1746199846136,-2000.0,0.0002,4]
[359634333,1746199846145,-2000.0,0.0002,4]
[359634334,1746199846155,-2000.0,0.0002,4]
[359634335,1746199846164,-2000.0,0.0002,4]
[359634336,1746199846175,-2000.0,0.0002,4]
[359634337,1746199846185,-2837836.42258881,0.0002,2]
[359634342,1746199846604,-1000.0,0.000197,2]
[359634343,1746199846613,-71772.59412788,0.0002,2]
[359634344,1746199846625,-11985.68605189,0.0002,2]
[359634345,1746199846639,-38893.60759414,0.0002,2]
[359634346,1746199846703,-1987.51787744,0.0002,2]
[359634347,1746199846714,-1054.19885197,0.0002,2]
[359634348,1746199847181,-309.138,0.00019955,2]
[359634349,1746199847194,-18872.22856029,0.0002,2]
[359634350,1746199847744,-2444.84,0.0002,2]
[359634351,1746199847756,-5844.0,0.0002,2]
[359634352,1746199847771,-8775.53930136,0.0002,2]
[359634353,1746199847782,-6225.504,0.0002,2]
[359634354,1746199847793,-1065.4360066,0.0002,2]
[359634355,1746199847805,-1864.12420033,0.0002,2]
[359634356,1746199847824,-816.8,0.0002,2]
[359634358,1746199908026,4018.4,0.00032876,60]
[359634359,1746199984306,155.09,0.00019034,2]
[359634360,1746199992655,387.58,0.00019027,2]
[359634361,1746200124264,150.0,0.00018958,2]
[359634362,1746200129802,1543.38,0.00018945,2]
[359634364,1746200176172,29625.08,0.00018883,2]
[359634365,1746200235090,2833.13,0.00018883,2]
[359634366,1746200331115,2501.45,0.00018903,2]
[359634367,1746200337641,1485.19,0.00018903,2]
[359634368,1746200445755,262.82,0.00018881,2]
[359634369,1746200523683,939.6498153,0.00032877,60]
[359634370,1746200539613,250.0,0.00018881,7]
[359634371,1746200576531,2436.11,0.0001887,2]
[359634372,1746200635272,1000.0,0.00018901,2]
[359634373,1746200643881,-162.26,0.00019515,2]
[359634374,1746200643907,-200.0,0.0001959,2]
[359634375,1746200643929,-200.0,0.0001964,2]
[359634376,1746200643950,-1200.0,0.00019664,2]
[359634377,1746200643971,-300.0,0.00019664,2]
[359634378,1746200643993,-421.83872181,0.00019664,2]
[359634379,1746200644014,-256.74649967,0.00019664,2]
[359634380,1746200644036,-2619.1242,0.00019665,2]
[359634381,1746200644058,-177.52336652,0.00019665,2]
[359634382,1746200644079,-421.83872172,0.0001969,2]
[359634383,1746200644107,-421.83872172,0.00019716,2]
[359634384,1746200644131,-421.83872172,0.00019743,2]
[359634385,1746200644152,-953.33,0.00019753,2]
[359634386,1746200644179,-2551.88636208,0.00019753,2]
[359634387,1746200644210,-500.0,0.00019763,2]
[359634388,1746200644241,-500.0,0.00019763,2]
[359634389,1746200644272,-500.0,0.00019763,2]
[359634390,1746200644303,-500.0,0.00019763,2]
[359634391,1746200644335,-500.0,0.00019763,2]
[359634392,1746200644369,-500.0,0.00019763,2]
[359634393,1746200644400,-401.75839937,0.00019763,2]
[359634394,1746200644425,-480.71,0.00019764,2]
[359634395,1746200644448,-450.0,0.00019764,2]
[359634396,1746200644473,-450.0,0.00019764,2]
[359634397,1746200644496,-500.0,0.00019764,2]
[359634398,1746200644518,-525.85012105,0.00019764,2]
[359634399,1746200644540,-450.0,0.00019764,2]
[359634400,1746200644562,-450.0,0.00019764,2]
[359634401,1746200644585,-250.0,0.00019764,2]
[359634402,1746200644608,-450.0,0.00019764,2]
[359634403,1746200644631,-450.0,0.00019764,2]
[359634404,1746200644653,-450.0,0.00019764,2]
[359634405,1746200644676,-486.7,0.00019764,2]
[359634406,1746200644702,-629.47,0.00019764,2]
[359634407,1746200644725,-450.0,0.00019764,2]
[359634408,1746200644748,-450.0,0.00019764,2]
[359634409,1746200644770,-450.0,0.00019764,2]
[359634410,1746200644793,-450.0,0.00019764,2]
[359634411,1746200644816,-450.0,0.00019764,2]
[359634412,1746200644838,-492.3658398,0.00019764,2]
[359634413,1746200644861,-450.0,0.00019764,2]
[359634414,1746200644883,-450.0,0.00019764,2]
[359634415,1746200644906,-184.76049492,0.00019764,2]
[359634416,1746200644931,-500.0,0.00019764,2]
[359634417,1746200644955,-518.41746674,0.00019764,2]
[359634418,1746200644977,-450.0,0.00019764,2]
[359634419,1746200644999,-451.73,0.00019764,2]
[359634420,1746200645021,-483.8,0.00019764,2]
[359634421,1746200645043,-450.0,0.00019764,2]
[359634422,1746200645065,-450.0,0.00019764,2]
[359634423,1746200645087,-271.97553485,0.00019764,2]
[359634424,1746200645109,-450.0,0.00019764,2]
[359634425,1746200645131,-591.15,0.00019764,2]
[359634426,1746200645154,-450.0,0.00019764,2]
[359634427,1746200645175,-450.0,0.00019764,2]
[359634428,1746200645198,-450.0,0.00019764,2]
[359634429,1746200645220,-450.0,0.00019764,2]
[359634430,1746200645241,-450.0,0.00019764,2]
[359634431,1746200645263,-450.0,0.00019764,2]
[359634432,1746200645284,-450.0,0.00019764,2]
[359634433,1746200645305,-670.15,0.00019764,2]
[359634434,1746200645339,-2.93682803,0.00019764,2]
[359634435,1746200684111,200.0,0.00018968,2]
[359634436,1746200746755,250.0,0.00018862,2]
[359634438,1746200923584,1131.61,0.000169,2]
[359634439,1746200923773,1131.61,0.00019164,2]
[359634440,1746200985566,199.02054066,0.0001933,2]
[359634441,1746200988027,289.53,0.00018826,2]
[359634443,1746201032154,-1200.0,0.00019664,2]
[359634444,1746201032164,-171.79080425,0.00019664,2]
[359634445,1746201032173,-300.0,0.00019664,2]